fUST/lending_fUST_20240501
["ID","MTS","AMOUNT","RATE_DAILY","PERIOD"]
[324992904,1714499448565,-532.76,0.00033424,7]
[324992905,1714499448575,-500.0,0.00033424,7]
[324992906,1714499448584,-500.0,0.00033424,7]
[324992907,1714499448594,-500.0,0.00033424,7]
[324992908,1714499448603,-500.0,0.00033424,7]
[324992909,1714499448613,-709.38,0.00033424,7]
[324992910,1714499448623,-500.0,0.00033424,7]
[324992911,1714499448632,-500.0,0.00033424,7]
[324992912,1714499448642,-500.0,0.00033424,7]
[324992913,1714499448655,-500.0,0.00033424,7]
[324992914,1714499448669,-279.2074271,0.00033424,7]
[324992915,1714499448680,-500.0,0.00033424,7]
[324992916,1714499448689,-644.89455973,0.00033424,7]
[324992917,1714499448698,-601.25055373,0.00033424,7]
[324992918,1714499448708,-500.0,0.00033424,2]
[324992919,1714499448717,-500.0,0.00033424,7]
[324992920,1714499448726,-500.0,0.00033424,7]
[324992921,1714499448735,-500.0,0.00033424,7]
[324992922,1714499448744,-500.0,0.00033424,7]
[324992923,1714499448753,-500.0,0.00033424,7]
[324992924,1714499448763,-500.0,0.00033424,7]
[324992925,1714499448772,-1092.87,0.00033424,7]
[324992926,1714499448908,-500.0,0.00033424,7]
[324992927,1714499448917,-500.0,0.00033424,7]
[324992928,1714499448927,-500.0,0.00033424,7]
[324992929,1714499448936,-500.0,0.00033424,7]
[324992930,1714499448945,-500.0,0.00033424,7]
[324992931,1714499448955,-500.0,0.00033424,7]
[324992932,1714499448964,-500.0,0.00033424,7]
[324992933,1714499448973,-500.0,0.00033424,7]
[324992934,1714499448983,-500.0,0.00033424,7]
[324992935,1714499448992,-560.28,0.00033424,7]
[324992936,1714499449002,-2394.56,0.00033424,7]
[324992937,1714499449011,-500.0,0.00033424,7]
[324992938,1714499449022,-351.69316233,0.00033424,7]
[324992939,1714499449032,-500.0,0.00033424,7]
[324992940,1714499449041,-794.19,0.00033424,7]
[324992941,1714499449050,-659.6,0.00033424,7]
[324992942,1714499449060,-500.0,0.00033424,7]
[324992943,1714499449069,-577.7,0.00033424,7]
[324992944,1714499449079,-799.86,0.00033424,7]
[324992945,1714499449088,-916.77,0.00033424,7]
[324992946,1714499449097,-598.01,0.00033424,7]
[324992947,1714499449106,-500.0,0.00033424,7]
[324992948,1714499449115,-500.0,0.00033424,7]
[324992949,1714499449125,-500.0,0.00033424,7]
[324992950,1714499449134,-609.48,0.00033424,7]
[324992951,1714499449148,-500.0,0.00033424,7]
[324992952,1714499449157,-607.06,0.00033424,7]
[324992953,1714499449167,-425.27009862,0.00033424,7]
[324992954,1714499449175,-500.0,0.00033424,7]
[324992955,1714499449184,-500.0,0.00033424,7]
[324992956,1714499449193,-2344.77,0.00033424,7]
[324992957,1714499449202,-141.55938946,0.00033424,7]
[324992958,1714499449347,-358.44061054,0.00033424,7]
[324992959,1714499449357,-500.0,0.00033424,7]
[324992960,1714499449367,-500.0,0.00033424,7]
[324992961,1714499449376,-500.0,0.00033424,7]
[324992962,1714499449386,-506.75,0.00033424,7]
[324992963,1714499449402,-561.26,0.00033424,7]
[324992964,1714499449411,-500.0,0.00033424,7]
[324992965,1714499449421,-500.0,0.00033424,7]
[324992966,1714499449430,-604.18,0.00033424,7]
[324992967,1714499449439,-500.0,0.00033424,7]
[324992968,1714499449448,-632.74,0.00033424,7]
[324992969,1714499449457,-369.01938946,0.00033424,7]
[324992970,1714499449469,-499.77218399,0.00033424,7]
[324992971,1714499449481,-453.44842655,0.00033424,7]
[324992972,1714499449493,-500.0,0.00033424,7]
[324992973,1714499449502,-500.0,0.00033424,7]
[324992974,1714499449511,-500.0,0.00033424,7]
[324992975,1714499449522,-500.0,0.00033424,7]
[324992976,1714499449531,-500.0,0.00033424,7]
[324992977,1714499449541,-500.0,0.00033424,7]
[324992978,1714499449550,-500.0,0.00033424,7]
[324992979,1714499449560,-750.76,0.00033424,7]
[324992980,1714499449570,-500.0,0.00033424,7]
[324992981,1714499449579,-1438.93,0.00033424,7]
[324992982,1714499449589,-500.0,0.00033424,7]
[324992983,1714499449598,-500.0,0.00033424,7]
[324992984,1714499449607,-500.0,0.00033424,7]
[324992985,1714499449616,-500.0,0.00033424,7]
[324992986,1714499449625,-500.0,0.00033424,7]
[324992987,1714499449634,-555.55887338,0.00033424,7]
[324992988,1714499449647,-540.78,0.00033424,7]
[324992989,1714499449658,-1000.0,0.00033437,2]
[324992990,1714499449667,-290.6,0.00033481,14]
[324992991,1714499449676,-1000.0,0.00033571,2]
[324992992,1714499449685,-158.697498,0.00033586,2]
[324992993,1714499449695,-425.4939263,0.00033589,2]
[324992994,1714499449703,-163.0,0.000336,21]
[324992995,1714499449712,-1000.0,0.00033612,2]
[324992996,1714499449722,-155.58236344,0.00033632,3]
[324992997,1714499449731,-153.0,0.00033663,2]
[324992998,1714499449740,-153.0,0.00033663,2]
[324992999,1714499449750,-153.0,0.00033663,2]
[324993000,1714499449759,-153.0,0.00033663,2]
[324993001,1714499449767,-153.0,0.00033663,2]
[324993002,1714499449776,-579.96,0.00033698,7]
[324993003,1714499449785,-500.0,0.00033698,7]
[324993004,1714499449794,-500.0,0.00033698,7]
[324993005,1714499449803,-500.0,0.00033698,7]
[324993006,1714499449813,-500.0,0.00033698,7]
[324993007,1714499449822,-500.0,0.00033698,7]
[324993008,1714499449831,-500.0,0.00033698,7]
[324993009,1714499449840,-500.0,0.00033698,7]
[324993010,1714499449849,-875.88,0.00033698,7]
[324993011,1714499449859,-626.92,0.00033698,7]
[324993012,1714499449868,-500.0,0.00033698,7]
[324993013,1714499449877,-559.69,0.00033698,7]
[324993014,1714499449886,-521.91,0.00033698,7]
[324993015,1714499449899,-567.94,0.00033698,7]
[324993016,1714499449908,-697.52,0.00033698,7]
[324993017,1714499449917,-260.15282453,0.00033698,7]
[324993018,1714499449926,-500.0,0.00033698,7]
[324993019,1714499449935,-500.0,0.00033698,7]
[324993020,1714499449944,-500.0,0.00033698,7]
[324993021,1714499449953,-500.0,0.00033698,7]
[324993022,1714499449962,-500.0,0.00033698,7]
[324993023,1714499449972,-500.0,0.00033698,7]
[324993024,1714499449981,-500.0,0.00033698,7]
[324993025,1714499449990,-500.0,0.00033698,7]
[324993026,1714499449999,-276.01644552,0.00033698,7]
[324993027,1714499450959,-500.0,0.0003178,2]
[324993028,1714499450968,-500.0,0.0003178,2]
[324993029,1714499450978,-500.0,0.0003178,2]
[324993030,1714499450988,-389.48625558,0.0003178,2]
[324993031,1714499450997,-592.21664608,0.00032054,2]
[324993032,1714499451007,-500.0,0.00032054,2]
[324993033,1714499451017,-500.0,0.00032054,2]
[324993034,1714499451028,-500.0,0.00032328,2]
[324993035,1714499451038,-500.0,0.00032328,2]
[324993036,1714499451048,-153.0,0.00032841,2]
[324993037,1714499451058,-223.98355448,0.00033698,7]
[324993038,1714499451069,-500.0,0.00033698,7]
[324993039,1714499451079,-585.25,0.00033698,7]
[324993040,1714499451089,-500.0,0.00033698,7]
[324993041,1714499451098,-500.0,0.00033698,7]
[324993042,1714499451108,-500.0,0.00033698,7]
[324993043,1714499451118,-578.4,0.00033698,7]
[324993044,1714499451127,-500.0,0.00033698,7]
[324993045,1714499451136,-500.0,0.00033698,7]
[324993046,1714499451147,-500.0,0.00033698,7]
[324993047,1714499451156,-532.76,0.00033698,7]
[324993048,1714499451165,-500.0,0.00033698,7]
[324993049,1714499451175,-500.0,0.00033698,7]
[324993050,1714499451185,-500.0,0.00033698,7]
[324993051,1714499451195,-500.0,0.00033698,7]
[324993052,1714499451205,-709.38,0.00033698,7]
[324993053,1714499451214,-500.0,0.00033698,7]
[324993054,1714499451224,-500.0,0.00033698,7]
[324993055,1714499451233,-500.0,0.00033698,7]
[324993056,1714499451243,-257.74428517,0.00033698,7]
[324993057,1714499451252,-500.0,0.00033698,7]
[324993058,1714499451262,-500.0,0.00033698,7]
[324993059,1714499451272,-500.0,0.00033698,7]
[324993060,1714499451282,-500.0,0.00033698,7]
[324993061,1714499451292,-500.0,0.00033698,7]
[324993062,1714499451302,-500.0,0.00033698,7]
[324993063,1714499451312,-500.0,0.00033698,7]
[324993064,1714499451322,-1092.87,0.00033698,7]
[324993065,1714499451332,-500.0,0.00033698,7]
[324993066,1714499451341,-500.0,0.00033698,7]
[324993067,1714499451351,-500.0,0.00033698,7]
[324993068,1714499451361,-500.0,0.00033698,7]
[324993069,1714499451370,-500.0,0.00033698,7]
[324993070,1714499451381,-500.0,0.00033698,7]
[324993071,1714499451390,-500.0,0.00033698,7]
[324993072,1714499451400,-500.0,0.00033698,7]
[324993073,1714499451409,-500.0,0.00033698,7]
[324993074,1714499451418,-560.28,0.00033698,7]
[324993075,1714499451429,-2394.56,0.00033698,7]
[324993076,1714499451439,-500.0,0.00033698,7]
[324993077,1714499451448,-500.0,0.00033698,7]
[324993078,1714499451458,-794.19,0.00033698,7]
[324993079,1714499451468,-659.6,0.00033698,7]
[324993080,1714499451478,-500.0,0.00033698,7]
[324993081,1714499451488,-577.7,0.00033698,7]
[324993082,1714499451500,-799.86,0.00033698,7]
[324993083,1714499451510,-916.77,0.00033698,7]
[324993084,1714499451519,-598.01,0.00033698,7]
[324993085,1714499451531,-500.0,0.00033698,7]
[324993086,1714499451542,-500.0,0.00033698,7]
[324993087,1714499451552,-500.0,0.00033698,7]
[324993088,1714499451562,-609.48,0.00033698,7]
[324993089,1714499451572,-500.0,0.00033698,7]
[324993090,1714499451583,-607.06,0.00033698,7]
[324993091,1714499451592,-500.0,0.00033698,7]
[324993092,1714499451602,-500.0,0.00033698,7]
[324993093,1714499451611,-2344.77,0.00033698,7]
[324993094,1714499451621,-500.0,0.00033698,7]
[324993095,1714499451631,-500.0,0.00033698,7]
[324993096,1714499451642,-500.0,0.00033698,7]
[324993097,1714499451652,-500.0,0.00033698,7]
[324993098,1714499451662,-506.75,0.00033698,7]
[324993099,1714499451672,-561.26,0.00033698,7]
[324993100,1714499451681,-500.0,0.00033698,7]
[324993101,1714499451690,-500.0,0.00033698,7]
[324993102,1714499451700,-522.11092335,0.00033698,7]
[324993103,1714499452266,-1564.25196696,0.00026947,2]
[324993104,1714499452276,-324.75862683,0.00031251,4]
[324993105,1714499452285,-500.0,0.0003178,2]
[324993106,1714499452295,-82.06907665,0.00033698,7]
[324993107,1714499452304,-500.0,0.00033698,7]
[324993108,1714499452313,-632.74,0.00033698,7]
[324993109,1714499452323,-1322.24,0.00033698,7]
[324993110,1714499452332,-500.0,0.00033698,7]
[324993111,1714499452342,-500.0,0.00033698,7]
[324993112,1714499452351,-85.94032956,0.00033698,7]
[324993113,1714499452363,-414.05967044,0.00033698,7]
[324993114,1714499452372,-500.0,0.00033698,7]
[324993115,1714499452382,-500.0,0.00033698,7]
[324993116,1714499452392,-500.0,0.00033698,7]
[324993117,1714499452402,-500.0,0.00033698,7]
[324993118,1714499452411,-750.76,0.00033698,7]
[324993119,1714499452421,-500.0,0.00033698,7]
[324993120,1714499452430,-1438.93,0.00033698,7]
[324993121,1714499452440,-500.0,0.00033698,7]
[324993122,1714499452449,-500.0,0.00033698,7]
[324993123,1714499452458,-500.0,0.00033698,7]
[324993124,1714499452467,-500.0,0.00033698,7]
[324993125,1714499452478,-500.0,0.00033698,7]
[324993126,1714499452488,-540.78,0.00033698,7]
[324993127,1714499452497,-287.0,0.000339,7]
[324993128,1714499452506,-169.686964,0.000339,2]
[324993129,1714499452516,-5789.41,0.00033969,2]
[324993130,1714499452526,-5789.41,0.00033969,2]
[324993131,1714499452535,-5789.41,0.00033969,2]
[324993132,1714499452545,-5789.41,0.00033969,2]
[324993133,1714499452554,-5789.41,0.00033969,2]
[324993134,1714499452564,-5789.41,0.00033969,2]
[324993135,1714499452574,-5789.41,0.00033969,2]
[324993136,1714499452583,-5789.41,0.00033969,2]
[324993137,1714499452593,-5789.41,0.00033969,2]
[324993138,1714499452602,-5789.41,0.00033969,2]
[324993139,1714499452611,-579.96,0.00033972,7]
[324993140,1714499452620,-500.0,0.00033972,7]
[324993141,1714499452630,-500.0,0.00033972,7]
[324993142,1714499452639,-500.0,0.00033972,7]
[324993143,1714499452649,-500.0,0.00033972,7]
[324993144,1714499452659,-500.0,0.00033972,7]
[324993145,1714499452669,-500.0,0.00033972,7]
[324993146,1714499452679,-500.0,0.00033972,7]
[324993147,1714499452688,-875.88,0.00033972,7]
[324993148,1714499452698,-626.92,0.00033972,7]
[324993149,1714499452707,-500.0,0.00033972,7]
[324993150,1714499452716,-559.69,0.00033972,7]
[324993151,1714499452725,-521.91,0.00033972,7]
[324993152,1714499452735,-697.52,0.00033972,7]
[324993153,1714499452744,-500.0,0.00033972,7]
[324993154,1714499452752,-500.0,0.00033972,7]
[324993155,1714499452761,-500.0,0.00033972,7]
[324993156,1714499452770,-500.0,0.00033972,7]
[324993157,1714499452779,-500.0,0.00033972,7]
[324993158,1714499452789,-500.0,0.00033972,7]
[324993159,1714499452798,-500.0,0.00033972,7]
[324993160,1714499452806,-500.0,0.00033972,7]
[324993161,1714499452815,-500.0,0.00033972,7]
[324993162,1714499452824,-500.0,0.00033972,7]
[324993163,1714499452833,-585.25,0.00033972,7]
[324993164,1714499452842,-500.0,0.00033972,7]
[324993165,1714499452851,-500.0,0.00033972,7]
[324993166,1714499452859,-421.66958801,0.00033972,7]
[324993167,1714499452868,-578.4,0.00033972,7]
[324993168,1714499452877,-500.0,0.00033972,7]
[324993169,1714499452886,-501.92783458,0.00033972,7]
[324993170,1714499452895,-500.0,0.00033972,7]
[324993171,1714499452904,-532.76,0.00033972,7]
[324993172,1714499452913,-500.0,0.00033972,7]
[324993173,1714499452921,-500.0,0.00033972,7]
[324993174,1714499452930,-500.0,0.00033972,7]
[324993175,1714499452939,-500.0,0.00033972,7]
[324993176,1714499452947,-709.38,0.00033972,7]
[324993177,1714499452956,-500.0,0.00033972,7]
[324993178,1714499452965,-500.0,0.00033972,7]
[324993179,1714499452974,-500.0,0.00033972,7]
[324993180,1714499453109,-280.99450938,0.00033972,7]
[324993181,1714499453119,-500.0,0.00033972,7]
[324993182,1714499453128,-500.0,0.00033972,7]
[324993183,1714499453137,-500.0,0.00033972,7]
[324993184,1714499453147,-500.0,0.00033972,7]
[324993185,1714499453156,-484.06242416,0.00033972,7]
[324993186,1714499453166,-500.0,0.00033972,7]
[324993187,1714499453175,-1092.87,0.00033972,7]
[324993188,1714499453185,-500.0,0.00033972,7]
[324993189,1714499453194,-500.0,0.00033972,7]
[324993190,1714499453203,-500.0,0.00033972,7]
[324993191,1714499453215,-500.0,0.00033972,7]
[324993192,1714499453223,-500.0,0.00033972,7]
[324993193,1714499453233,-500.0,0.00033972,7]
[324993194,1714499453242,-500.0,0.00033972,7]
[324993195,1714499453251,-500.0,0.00033972,7]
[324993196,1714499453260,-500.0,0.00033972,7]
[324993197,1714499453269,-560.28,0.00033972,7]
[324993198,1714499453278,-2394.56,0.00033972,7]
[324993199,1714499453287,-500.0,0.00033972,7]
[324993200,1714499453297,-794.19,0.00033972,7]
[324993201,1714499453306,-659.6,0.00033972,7]
[324993202,1714499453315,-500.0,0.00033972,7]
[324993203,1714499453325,-577.7,0.00033972,7]
[324993204,1714499453334,-799.86,0.00033972,7]
[324993205,1714499453343,-916.77,0.00033972,7]
[324993206,1714499453353,-598.01,0.00033972,7]
[324993207,1714499453362,-500.0,0.00033972,7]
[324993208,1714499453371,-500.0,0.00033972,7]
[324993209,1714499453381,-500.0,0.00033972,7]
[324993210,1714499453390,-609.48,0.00033972,7]
[324993211,1714499453402,-500.0,0.00033972,7]
[324993212,1714499453411,-607.06,0.00033972,7]
[324993213,1714499453421,-500.0,0.00033972,7]
[324993214,1714499453430,-500.0,0.00033972,7]
[324993215,1714499453441,-2344.77,0.00033972,7]
[324993216,1714499453450,-500.0,0.00033972,7]
[324993217,1714499453459,-500.0,0.00033972,7]
[324993218,1714499453469,-500.0,0.00033972,7]
[324993219,1714499453479,-500.0,0.00033972,7]
[324993220,1714499453495,-506.75,0.00033972,7]
[324993221,1714499453505,-561.26,0.00033972,7]
[324993222,1714499453514,-500.0,0.00033972,7]
[324993223,1714499453523,-500.0,0.00033972,7]
[324993224,1714499453535,-604.18,0.00033972,7]
[324993225,1714499453544,-198.05521482,0.00033972,7]
[324993226,1714499453554,-632.74,0.00033972,7]
[324993227,1714499453564,-1322.24,0.00033972,7]
[324993228,1714499453575,-500.0,0.00033972,7]
[324993229,1714499453585,-500.0,0.00033972,7]
[324993230,1714499453595,-500.0,0.00033972,7]
[324993231,1714499453605,-500.0,0.00033972,7]
[324993232,1714499453615,-494.08162987,0.00033972,7]
[324993233,1714499453625,-500.0,0.00033972,7]
[324993234,1714499453635,-500.0,0.00033972,7]
[324993235,1714499453645,-750.76,0.00033972,7]
[324993236,1714499453655,-500.0,0.00033972,7]
[324993237,1714499453665,-1438.93,0.00033972,7]
[324993238,1714499453675,-500.0,0.00033972,7]
[324993239,1714499453684,-500.0,0.00033972,7]
[324993240,1714499453694,-500.0,0.00033972,7]
[324993241,1714499453703,-500.0,0.00033972,7]
[324993242,1714499453712,-500.0,0.00033972,7]
[324993243,1714499453722,-540.78,0.00033972,7]
[324993244,1714499453731,-466.43678541,0.00034,4]
[324993245,1714499453741,-158.697498,0.00034001,2]
[324993246,1714499453750,-187.351213,0.00034001,2]
[324993247,1714499453759,-579.96,0.00034246,7]
[324993248,1714499453769,-492.73900419,0.00034246,7]
[324993249,1714499453779,-243.00697686,0.00034246,7]
[324993250,1714499453788,-500.0,0.00034246,7]
[324993251,1714499453798,-500.0,0.00034246,7]
[324993252,1714499453807,-500.0,0.00034246,7]
[324993253,1714499453817,-500.0,0.00034246,7]
[324993254,1714499453827,-500.0,0.00034246,7]
[324993255,1714499453836,-875.88,0.00034246,7]
[324993256,1714499453845,-626.92,0.00034246,7]
[324993257,1714499453854,-500.0,0.00034246,7]
[324993258,1714499453864,-559.69,0.00034246,7]
[324993259,1714499453873,-521.91,0.00034246,7]
[324993260,1714499453883,-697.52,0.00034246,7]
[324993261,1714499453892,-500.0,0.00034246,7]
[324993262,1714499453904,-500.0,0.00034246,7]
[324993263,1714499453913,-500.0,0.00034246,7]
[324993264,1714499453922,-345.03720873,0.00034246,7]
[324993265,1714499453931,-500.0,0.00034246,7]
[324993266,1714499453941,-500.0,0.00034246,7]
[324993267,1714499453950,-500.0,0.00034246,7]
[324993268,1714499453959,-500.0,0.00034246,7]
[324993269,1714499453969,-500.0,0.00034246,7]
[324993270,1714499453978,-500.0,0.00034246,7]
[324993271,1714499453987,-585.25,0.00034246,7]
[324993272,1714499453996,-500.0,0.00034246,7]
[324993273,1714499454006,-500.0,0.00034246,7]
[324993274,1714499454018,-578.4,0.00034246,7]
[324993275,1714499454028,-500.0,0.00034246,7]
[324993276,1714499454037,-500.0,0.00034246,7]
[324993277,1714499454046,-532.76,0.00034246,7]
[324993278,1714499454055,-500.0,0.00034246,7]
[324993279,1714499454065,-500.0,0.00034246,7]
[324993280,1714499454075,-500.0,0.00034246,7]
[324993281,1714499454084,-500.0,0.00034246,7]
[324993282,1714499454093,-709.38,0.00034246,7]
[324993283,1714499454102,-500.0,0.00034246,7]
[324993284,1714499454111,-500.0,0.00034246,7]
[324993285,1714499454120,-500.0,0.00034246,7]
[324993286,1714499454130,-500.0,0.00034246,7]
[324993287,1714499454139,-500.0,0.00034246,7]
[324993288,1714499454150,-500.0,0.00034246,7]
[324993289,1714499454159,-500.0,0.00034246,7]
[324993290,1714499454168,-500.0,0.00034246,7]
[324993291,1714499454177,-1092.87,0.00034246,7]
[324993292,1714499454186,-500.0,0.00034246,7]
[324993293,1714499454195,-500.0,0.00034246,7]
[324993294,1714499454204,-500.0,0.00034246,7]
[324993295,1714499454213,-500.0,0.00034246,7]
[324993296,1714499454222,-500.0,0.00034246,7]
[324993297,1714499454231,-500.0,0.00034246,7]
[324993298,1714499454240,-500.0,0.00034246,7]
[324993299,1714499454249,-500.0,0.00034246,7]
[324993300,1714499454259,-500.0,0.00034246,7]
[324993301,1714499454268,-560.28,0.00034246,7]
[324993302,1714499454277,-2394.56,0.00034246,7]
[324993303,1714499454286,-500.0,0.00034246,7]
[324993304,1714499454295,-794.19,0.00034246,7]
[324993305,1714499454304,-659.6,0.00034246,7]
[324993306,1714499454314,-500.0,0.00034246,7]
[324993307,1714499454323,-577.7,0.00034246,7]
[324993308,1714499454332,-799.86,0.00034246,7]
[324993309,1714499454342,-916.77,0.00034246,7]
[324993310,1714499454351,-598.01,0.00034246,7]
[324993311,1714499454360,-500.0,0.00034246,7]
[324993312,1714499454369,-500.0,0.00034246,7]
[324993313,1714499454378,-500.0,0.00034246,7]
[324993314,1714499454387,-609.48,0.00034246,7]
[324993315,1714499454397,-500.0,0.00034246,7]
[324993316,1714499454407,-607.06,0.00034246,7]
[324993317,1714499454415,-500.0,0.00034246,7]
[324993318,1714499454424,-500.0,0.00034246,7]
[324993319,1714499454433,-2344.77,0.00034246,7]
[324993320,1714499454443,-500.0,0.00034246,7]
[324993321,1714499454452,-500.0,0.00034246,7]
[324993322,1714499454461,-500.0,0.00034246,7]
[324993323,1714499454470,-500.0,0.00034246,7]
[324993324,1714499454480,-506.75,0.00034246,7]
[324993325,1714499454493,-561.26,0.00034246,7]
[324993326,1714499454502,-500.0,0.00034246,7]
[324993327,1714499454511,-500.0,0.00034246,7]
[324993328,1714499454520,-604.18,0.00034246,7]
[324993329,1714499454531,-632.74,0.00034246,7]
[324993330,1714499454541,-1322.24,0.00034246,7]
[324993331,1714499454550,-500.0,0.00034246,7]
[324993332,1714499454560,-500.0,0.00034246,7]
[324993333,1714499454569,-500.0,0.00034246,7]
[324993334,1714499454579,-171.80868443,0.00034246,7]
[324993335,1714499454588,-500.0,0.00034246,7]
[324993336,1714499454597,-500.0,0.00034246,7]
[324993337,1714499454606,-750.76,0.00034246,7]
[324993338,1714499454615,-500.0,0.00034246,7]
[324993339,1714499454625,-1438.93,0.00034246,7]
[324993340,1714499454634,-500.0,0.00034246,7]
[324993341,1714499454643,-500.0,0.00034246,7]
[324993342,1714499454654,-500.0,0.00034246,7]
[324993343,1714499454664,-500.0,0.00034246,7]
[324993344,1714499454673,-500.0,0.00034246,7]
[324993345,1714499454683,-540.78,0.00034246,7]
[324993346,1714499454692,-200.0,0.00034288,120]
[324993347,1714499454701,-306.0,0.00034411,2]
[324993348,1714499454710,-153.0,0.00034411,2]
[324993349,1714499454719,-153.0,0.00034411,2]
[324993350,1714499454728,-153.0,0.00034411,2]
[324993351,1714499454737,-153.0,0.00034411,2]
[324993352,1714499454746,-153.0,0.00034411,2]
[324993353,1714499454755,-153.0,0.00034411,2]
[324993354,1714499454764,-153.0,0.00034411,2]
[324993355,1714499454773,-153.0,0.00034411,2]
[324993356,1714499454782,-153.0,0.00034411,2]
[324993357,1714499454791,-153.0,0.00034411,2]
[324993358,1714499454800,-153.0,0.00034411,2]
[324993359,1714499454809,-153.0,0.00034411,2]
[324993360,1714499454818,-153.0,0.00034411,2]
[324993361,1714499454827,-153.0,0.00034411,2]
[324993362,1714499454836,-153.0,0.00034411,2]
[324993363,1714499454845,-153.0,0.00034411,2]
[324993364,1714499454854,-153.0,0.00034411,2]
[324993365,1714499454863,-153.0,0.00034411,2]
[324993366,1714499454872,-153.0,0.00034411,2]
[324993367,1714499454881,-158.697498,0.00034415,2]
[324993368,1714499454890,-290.6,0.00034467,14]
[324993369,1714499454900,-579.96,0.0003452,7]
[324993370,1714499454909,-500.0,0.0003452,7]
[324993371,1714499454918,-500.0,0.0003452,7]
[324993372,1714499454927,-500.0,0.0003452,7]
[324993373,1714499454936,-500.0,0.0003452,7]
[324993374,1714499454945,-207.03502404,0.0003452,7]
[324993375,1714499454954,-875.88,0.0003452,7]
[324993376,1714499454963,-626.92,0.0003452,7]
[324993377,1714499454973,-500.0,0.0003452,7]
[324993378,1714499454984,-559.69,0.0003452,7]
[324993379,1714499454994,-521.91,0.0003452,7]
[324993380,1714499455003,-697.52,0.0003452,7]
[324993381,1714499455012,-500.0,0.0003452,7]
[324993382,1714499455027,-500.0,0.0003452,7]
[324993383,1714499455038,-500.0,0.0003452,7]
[324993384,1714499455048,-500.0,0.0003452,7]
[324993385,1714499455058,-500.0,0.0003452,7]
[324993386,1714499455068,-500.0,0.0003452,7]
[324993387,1714499455078,-500.0,0.0003452,7]
[324993388,1714499455087,-500.0,0.0003452,7]
[324993389,1714499455096,-500.0,0.0003452,7]
[324993390,1714499455107,-585.25,0.0003452,7]
[324993391,1714499455116,-500.0,0.0003452,7]
[324993392,1714499455126,-500.0,0.0003452,7]
[324993393,1714499455135,-578.4,0.0003452,7]
[324993394,1714499455144,-500.0,0.0003452,7]
[324993395,1714499455154,-549.93648231,0.0003452,7]
[324993396,1714499455163,-532.76,0.0003452,7]
[324993397,1714499455174,-500.0,0.0003452,7]
[324993398,1714499455183,-500.0,0.0003452,7]
[324993399,1714499455194,-500.0,0.0003452,7]
[324993400,1714499455203,-500.0,0.0003452,7]
[324993401,1714499455212,-709.38,0.0003452,7]
[324993402,1714499455221,-500.0,0.0003452,7]
[324993403,1714499455230,-500.0,0.0003452,7]